bitfinex-derivatives/quotes_ETHF0:USTF0_20260116
["timestamp","ask_amount","ask_price","bid_price","bid_amount"]
[1768566853332,0.15109,3310.4,3309.3,0.13087637]
[1768566853839,0.00337348,3310.9,3309.7,1.21797729]
[1768566854139,0.15443348,3310.9,3309.7,1.34885366]
[1768566854340,0.15443348,3310.9,3309.7,0.13087637]
[1768566854541,1.21797729,3310.8,3309.7,0.13087637]
[1768566855640,0.15443348,3310.9,3309.7,0.13087637]
[1768566855843,1.21797729,3310.8,3309.7,0.13087637]
[1768566857641,0.15443348,3310.9,3309.7,0.13087637]
[1768566857942,0.15443348,3310.9,3309.8,0.13087637]
[1768566858737,1.37241077,3310.9,3309.8,0.13087637]
[1768566859738,1.21797729,3310.8,3309.8,0.13087637]
[1768566860848,0.15443348,3310.9,3309.8,0.13087637]
[1768566863644,0.15443348,3310.9,3309.9,1.21797729]
[1768566863848,0.15443348,3310.9,3310.0,0.13256152]
[1768566866548,0.15443348,3310.9,3309.7,1.21797729]
[1768566866748,1.37241077,3310.9,3309.7,1.21797729]
[1768566866948,1.37241077,3310.9,3309.7,1.35053881]
[1768566867651,0.15443348,3310.9,3309.7,1.35053881]
[1768566868752,0.15443348,3310.9,3309.8,0.13993026]
[1768566869952,0.15443348,3310.9,3310.0,1.35790755]
[1768566871555,0.00337348,3310.9,3310.0,1.35790755]
[1768566871754,0.00337348,3310.9,3310.1,0.13993026]
[1768566871955,0.15104,3311.5,3310.6,1.21797729]
[1768566872554,0.15101,3312.2,3310.6,1.21797729]
[1768566872751,1.21797729,3312.0,3310.6,1.35790755]
[1768566872951,1.22092667,3312.0,3310.6,1.36100249]
[1768566873560,0.92570278,3311.9,3310.6,1.36100249]
[1768566873854,0.92570278,3311.8,3310.8,1.21797729]
[1768566874053,0.92570278,3311.7,3310.8,1.21797729]
[1768566874252,0.92570278,3311.6,3310.8,1.21797729]
[1768566874451,1.22092667,3312.0,3310.8,1.21797729]
[1768566874755,0.92545102,3311.9,3310.8,0.13993026]
[1768566874957,0.92545102,3311.8,3310.8,0.13993026]
[1768566875151,0.92545102,3311.7,3310.8,0.13993026]
[1768566875351,0.92545102,3311.6,3310.8,0.13993026]
[1768566875551,1.22092667,3312.0,3310.8,0.13993026]
[1768566875753,0.92529472,3311.9,3310.8,0.13993026]
[1768566875955,0.92529472,3311.8,3310.8,0.13993026]
[1768566876254,0.92529472,3311.7,3310.8,0.13993026]
[1768566876454,0.92529472,3311.6,3310.8,0.13993026]
[1768566876654,1.21797729,3311.9,3310.8,0.13993026]
[1768566876856,0.92517589,3311.8,3310.8,0.13993026]
[1768566877061,0.92517589,3311.7,3310.8,0.13993026]
[1768566877358,0.92517589,3311.6,3310.8,0.13993026]
[1768566877561,1.21797729,3311.9,3310.8,0.13993026]
[1768566877852,1.21797729,3311.9,3310.6,1.22107223]
[1768566877853,1.21797729,3311.6,3310.6,0.00309494]
[1768566878264,0.99893449,3311.5,3310.6,0.00309494]
[1768566878559,0.99893449,3311.4,3310.6,0.00309494]
[1768566878760,0.99893449,3311.3,3310.6,0.00309494]
[1768566878960,1.21797729,3311.6,3310.6,0.00309494]
[1768566879260,0.99884003,3311.5,3310.6,0.00309494]
[1768566879462,0.99884003,3311.4,3310.6,0.00309494]
[1768566879662,0.99884003,3311.3,3310.6,0.00309494]
[1768566879857,1.21797729,3311.6,3310.6,0.00309494]
[1768566880057,0.99882075,3311.5,3310.6,0.00309494]
[1768566880254,0.99882075,3311.4,3310.6,0.00309494]
[1768566880455,1.21797729,3311.8,3310.6,0.00309494]
[1768566880761,0.99884246,3311.7,3310.6,0.00309494]
[1768566881061,0.99884246,3311.6,3310.6,0.00309494]
[1768566881258,0.99884246,3311.5,3310.6,0.00309494]
[1768566881460,0.99884246,3311.4,3310.6,0.00309494]
[1768566881764,1.37194667,3312.0,3310.7,0.13993026]
[1768566881968,0.99888075,3311.9,3310.7,0.13993026]
[1768566882166,0.99888075,3311.8,3310.7,0.13993026]
[1768566882458,0.99888075,3311.7,3310.8,1.21797729]
[1768566882665,0.99888075,3311.6,3310.8,1.21797729]
[1768566882863,0.15396938,3312.0,3310.8,1.21797729]
[1768566883059,0.99892895,3311.9,3310.8,1.21797729]
[1768566883262,0.15396938,3312.0,3310.8,1.21797729]
[1768566883263,0.99892895,3311.8,3310.8,1.21797729]
[1768566883465,0.99892895,3311.7,3310.7,0.13993026]
[1768566883767,0.99892895,3311.6,3310.7,0.13993026]
[1768566883967,1.21797729,3311.8,3310.7,0.13993026]
[1768566884158,0.9990068,3311.7,3310.7,0.13993026]
[1768566884361,0.9990068,3311.6,3310.6,1.22107223]
[1768566884560,1.21797729,3311.8,3310.6,1.22107223]
[1768566884768,0.99897065,3311.7,3310.6,1.22107223]
[1768566885069,0.99897065,3311.6,3310.6,1.22107223]
[1768566885270,0.15396938,3312.0,3310.6,1.22107223]
[1768566885468,2.21695084,3311.9,3310.6,1.22107223]
[1768566885770,0.99897355,3311.8,3310.6,1.22107223]
[1768566885967,0.99897355,3311.8,3310.6,1.36100249]
[1768566886169,0.99897355,3311.8,3310.8,1.21797729]
[1768566886368,0.15396938,3312.0,3310.8,1.21797729]
[1768566886569,0.99697785,3311.9,3310.8,1.21797729]
[1768566886771,0.15396938,3312.0,3310.8,1.21797729]
[1768566886973,0.9969777,3311.9,3310.8,1.35790755]
[1768566887274,0.9969777,3311.8,3311.0,1.21797729]
[1768566887480,0.9969777,3311.7,3311.0,1.21797729]
[1768566887775,0.00294938,3312.0,3311.2,1.21797729]
[1768566887976,0.99693145,3311.9,3311.2,1.21797729]
[1768566888177,0.00294938,3312.0,3311.2,1.35790755]
[1768566889062,2.17058986,3312.5,3311.4,1.35790755]
[1768566889372,0.99675352,3312.4,3311.4,1.35790755]
[1768566889675,0.99675352,3312.3,3311.4,1.35790755]
[1768566889878,0.99675352,3312.2,3311.4,1.35790755]
[1768566890065,0.00212565,3312.2,3311.4,1.35790755]
[1768566891368,0.00212565,3312.2,3311.4,0.13993026]
[1768566891570,0.00212565,3312.2,3311.0,1.35167803]
[1768566892976,0.00212565,3312.2,3311.2,1.21797729]
[1768566893678,0.00212565,3312.2,3311.4,1.21797729]
[1768566894076,0.00212565,3312.2,3311.4,1.35167803]
[1768566894376,0.00212565,3312.2,3311.5,0.13370074]
[1768566894578,0.00212565,3312.2,3311.6,1.21797729]
[1768566895774,2.17058986,3312.5,3311.6,1.35167803]
[1768566895976,0.99585962,3312.4,3311.6,1.35167803]
[1768566896181,2.17058986,3312.5,3311.6,1.35167803]
[1768566896477,0.99585284,3312.4,3311.8,1.21797729]
[1768566896678,2.17058986,3312.5,3311.8,1.21797729]
[1768566896876,0.99586358,3312.4,3311.8,1.21797729]
[1768566897073,2.17344256,3312.5,3311.8,1.21797729]
[1768566897385,0.99586308,3312.4,3311.8,1.21797729]
[1768566897572,2.17344256,3312.5,3311.8,1.21797729]
[1768566897879,1.50371594,3312.5,3311.8,1.35167803]
[1768566898680,1.50371594,3312.5,3312.1,0.01565763]
[1768566899080,1.50371594,3312.5,3312.3,0.03223361]
[1768566899576,1.50371594,3312.5,3311.8,1.35167803]
[1768566899990,1.50371594,3312.5,3312.1,0.01657598]
[1768566900577,1.50371594,3312.5,3311.3,0.13370074]
[1768566900782,1.50371594,3312.5,3311.4,1.21797729]
[1768566901289,1.50371594,3312.5,3311.4,1.35167803]
[1768566905284,1.21797729,3312.4,3311.4,0.13370074]
[1768566906080,1.50371594,3312.5,3311.4,0.13370074]
[1768566906281,0.99267969,3312.4,3311.9,0.0164393]
[1768566906482,1.50371594,3312.5,3311.9,0.0164393]
[1768566906685,0.99277503,3312.4,3311.4,0.13370074]
[1768566906884,1.50371594,3312.5,3311.4,0.13370074]
[1768566907083,0.99277503,3312.4,3311.4,0.13370074]
[1768566907388,1.50371594,3312.5,3311.4,0.13370074]
[1768566907584,0.99289404,3312.4,3311.4,0.13370074]
[1768566907787,1.50371594,3312.5,3311.8,1.21797729]
[1768566908185,1.50371594,3312.5,3311.6,1.35167803]
[1768566908392,1.50371594,3312.5,3311.6,0.13370074]
[1768566908593,2.72169323,3312.5,3311.1,0.13370074]
[1768566908889,0.98763414,3312.4,3311.1,0.13370074]
[1768566909090,2.72169323,3312.5,3311.1,0.13370074]
[1768566909281,0.98769513,3312.4,3311.1,0.13370074]
[1768566909481,2.72169323,3312.5,3311.1,0.13370074]
[1768566909693,0.98788587,3312.4,3311.1,0.13370074]
[1768566909892,2.72169323,3312.5,3311.1,0.13370074]
[1768566910085,0.98788563,3312.4,3311.2,1.21797729]
[1768566910286,1.50371594,3312.5,3311.2,1.35167803]
[1768566910487,0.98811243,3312.4,3311.2,1.35167803]
[1768566910687,0.98811243,3312.3,3311.2,1.35167803]
[1768566910890,1.50371594,3312.5,3311.2,1.35167803]
[1768566911090,0.98811234,3312.4,3311.2,1.35167803]
[1768566911393,0.98811234,3312.3,3311.2,1.35167803]
[1768566911590,1.50371594,3312.5,3311.2,1.35167803]
[1768566911892,0.98836026,3312.4,3311.6,1.21797729]
[1768566912087,1.50371594,3312.5,3311.6,1.21797729]
[1768566912288,0.98834386,3312.4,3311.6,1.21797729]
[1768566912487,1.50371594,3312.5,3311.6,1.21797729]
[1768566912694,0.98855763,3312.4,3311.6,1.21797729]
[1768566912894,1.50371594,3312.5,3311.6,1.21797729]
[1768566913297,1.50371594,3312.5,3311.6,1.35167803]
[1768566913592,1.50371594,3312.5,3311.8,1.21797729]
[1768566913897,1.50371594,3312.5,3311.8,1.35167803]
[1768566915413,1.50371594,3312.5,3311.8,0.13370074]
[1768566916118,1.50371594,3312.5,3311.0,0.13370074]
[1768566916713,1.50371594,3312.5,3311.3,0.13370074]
[1768566922920,1.50371594,3312.5,3311.6,1.34900112]
[1768566923705,1.50371594,3312.5,3311.7,0.13281614]
[1768566924115,3.79853225,3313.1,3311.7,0.13281614]
[1768566924313,0.98086317,3313.0,3311.7,0.13281614]
[1768566924512,0.98086317,3312.9,3311.7,0.13281614]
[1768566924716,3.79853225,3313.1,3311.7,0.13281614]
[1768566924916,0.98063998,3313.0,3311.7,0.13281614]
[1768566925118,0.00379159,3313.0,3311.7,0.13281614]
[1768566929421,3.79853225,3313.1,3312.1,0.13984081]
[1768566929616,0.006037,3313.2,3312.1,0.13984081]
[1768566929920,5.42647465,3313.5,3312.5,0.13984081]
[1768566930418,5.42938837,3313.5,3312.5,0.13984081]
[1768566932216,1.14374456,3313.4,3311.5,3.15984081]
[1768566932411,0.92491048,3313.3,3311.5,0.13984081]
[1768566932615,0.92491048,3313.2,3311.5,0.13984081]
[1768566932820,0.21883408,3313.4,3311.7,1.35602579]
[1768566933028,0.92491602,3313.3,3311.7,1.35602579]
[1768566933230,0.21883408,3313.4,3311.7,1.35602579]
[1768566933532,0.91741999,3313.3,3311.7,1.35602579]
[1768566933741,0.21883408,3313.4,3311.7,1.35602579]
[1768566933925,0.91742606,3313.3,3311.8,0.13984081]
[1768566934127,0.21883408,3313.4,3311.8,0.13984081]
[1768566934326,0.91742641,3313.3,3311.8,0.13984081]
[1768566934528,0.21883408,3313.4,3311.8,0.13984081]
[1768566934826,0.91740016,3313.3,3311.8,0.13984081]
[1768566935023,0.21883408,3313.4,3311.8,0.13984081]
[1768566935220,0.91613262,3313.3,3311.8,0.13984081]
[1768566935421,4.43577815,3313.4,3311.8,0.13984081]
[1768566935621,0.91611824,3313.3,3311.8,0.13984081]
[1768566935816,0.21883408,3313.4,3311.8,0.13984081]
[1768566936122,0.91611857,3313.3,3311.8,0.13984081]
[1768566936329,4.43577815,3313.4,3311.8,0.13984081]
[1768566936521,4.21694407,3313.2,3311.4,0.13984081]
[1768566936715,0.06869609,3313.3,3311.4,0.13984081]
[1768566936915,0.98483999,3313.2,3311.4,0.13984081]
[1768566937115,0.06869609,3313.2,3311.4,0.13984081]
[1768566937319,0.06869372,3313.1,3311.4,0.13984081]
[1768566937631,0.06869372,3313.0,3311.4,0.13984081]
[1768566937827,4.28563779,3313.0,3311.4,0.13984081]
[1768566938227,4.21694407,3312.7,3310.9,1.36724498]
[1768566938530,0.06832207,3312.8,3310.9,1.36724498]
[1768566938824,0.00291372,3313.5,3311.8,0.13984081]
[1768566939016,0.21928207,3313.3,3311.6,1.21618498]
[1768566939218,0.9188208,3313.2,3311.6,1.21618498]
[1768566939418,0.06831975,3313.0,3311.3,0.13984081]
[1768566939620,0.97761263,3312.9,3310.8,0.29091081]
[1768566939823,1.12859263,3312.8,3310.8,0.29091081]
[1768566940130,0.15099,3312.5,3310.8,0.13984081]
[1768566940525,4.21694407,3312.4,3310.8,0.13984081]
[1768566940925,4.21694407,3312.3,3310.8,0.13984081]
[1768566941127,4.21694407,3312.4,3310.8,0.13984081]
[1768566941529,4.21694407,3312.3,3310.8,0.13984081]
[1768566941717,0.15099,3312.5,3311.0,1.35602579]
[1768566942129,4.21694407,3312.4,3311.0,1.35602579]
[1768566942524,4.21694407,3312.3,3311.0,1.35602579]
[1768566942727,4.21694407,3312.4,3311.0,1.35602579]
[1768566943428,4.21694407,3312.3,3311.0,1.35602579]
[1768566943730,4.21694407,3312.4,3311.1,0.13984081]
[1768566944731,4.21694407,3312.3,3311.1,0.13984081]
[1768566945430,4.21694407,3312.2,3311.1,0.13984081]
[1768566945731,4.21694407,3312.3,3311.1,0.13984081]
[1768566946034,4.21694407,3312.4,3311.1,0.13984081]
[1768566946633,4.21694407,3312.3,3311.1,0.13984081]
[1768566946833,0.15099,3312.5,3311.1,0.13984081]
[1768566947028,0.15099,3312.5,3310.8,1.21618498]
[1768566947236,4.28369776,3312.3,3310.6,0.14293575]
[1768566947421,0.06675369,3312.3,3310.6,0.14293575]
[1768566947626,4.21694407,3312.2,3310.6,0.14293575]
[1768566947826,4.28369776,3312.3,3310.6,0.14293575]
[1768566948027,4.21694407,3312.2,3310.6,0.14293575]
[1768566948830,0.06675369,3312.3,3310.6,0.14293575]
[1768566949031,0.21777906,3312.1,3310.6,0.00309494]
[1768566949233,0.06676906,3312.0,3310.6,0.00309494]
[1768566949434,4.21694407,3311.6,3310.6,0.00309494]
[1768566949629,0.06676906,3312.0,3310.6,0.00309494]
[1768566949630,4.21694407,3311.3,3310.6,0.00309494]
[1768566949935,4.21694407,3311.6,3310.6,0.00309494]
[1768566950334,4.21694407,3311.4,3310.6,0.00309494]
[1768566950527,4.21694407,3311.6,3310.6,0.00309494]
[1768566950728,0.15101,3312.1,3310.6,0.00309494]
[1768566951039,4.21694407,3311.8,3310.6,1.21927992]
[1768566951229,4.21694407,3311.7,3310.6,0.00309494]
[1768566951735,4.21694407,3311.5,3310.6,0.00309494]
[1768566951936,4.21694407,3311.7,3310.6,0.00309494]
[1768566952331,4.21694407,3311.5,3310.6,0.00309494]
[1768566952527,0.21581797,3311.9,3310.6,0.00309494]
[1768566952733,4.21694407,3311.5,3310.1,0.1511]
[1768566953034,4.21694407,3311.7,3310.0,0.13732679]
[1768566953234,0.06479797,3311.9,3310.0,0.13732679]
[1768566953235,5.27576188,3311.6,3310.0,0.13732679]
[1768566953434,0.15104,3311.5,3310.0,0.13732679]
[1768566953637,4.21694407,3311.4,3310.0,0.13732679]
[1768566953834,4.21694407,3311.2,3310.0,0.14073985]
[1768566954237,4.21694407,3311.1,3310.0,0.14073985]
[1768566954438,0.002966,3311.1,3310.0,0.14073985]
[1768566954635,4.21694407,3311.0,3310.0,0.14073985]
[1768566954834,0.06479797,3311.9,3310.2,0.13732679]
[1768566955838,0.06781028,3311.9,3310.2,0.13732679]
[1768566957340,0.00301231,3311.9,3310.2,0.13732679]
[1768566960741,0.00301231,3311.9,3310.6,0.13732679]
[1768566963539,0.00301231,3311.9,3311.0,0.13732679]
[1768566964740,0.15099,3312.5,3311.0,0.13732679]
[1768566964935,0.15096,3313.2,3311.4,0.13732679]
[1768566965137,1.05840735,3313.1,3311.4,0.13732679]
[1768566965335,0.90744735,3313.0,3311.4,0.13732679]
[1768566965742,0.90975413,3313.0,3311.4,0.13732679]
[1768566965943,0.90744735,3312.9,3311.4,0.13732679]
[1768566976143,0.15327678,3313.0,3311.4,0.13732679]
[1768566976343,0.90813067,3312.9,3311.4,0.13732679]
[1768566976642,0.15327678,3313.0,3311.4,0.13732679]
[1768566976841,0.90809754,3312.9,3311.4,0.13732679]
[1768566977140,0.15327678,3313.0,3311.4,0.13732679]
[1768566977341,0.90807574,3312.9,3311.4,0.13732679]
[1768566977537,0.15327678,3313.0,3311.4,0.13732679]
[1768566977741,0.90802062,3312.9,3311.4,0.13732679]
[1768566977942,0.15327678,3313.0,3311.4,0.13732679]
[1768566978137,0.90802061,3312.9,3311.4,0.13732679]
[1768566978350,0.15327678,3313.0,3311.4,0.13732679]
[1768566978549,0.90793751,3312.9,3311.4,0.13732679]
[1768566978850,0.15327678,3313.0,3311.4,0.13732679]
[1768566979059,0.9079375,3312.9,3311.4,0.13732679]
[1768566979350,0.15327678,3313.0,3311.4,0.13732679]
[1768566979550,0.90787878,3312.9,3311.4,0.13732679]
[1768566979744,0.15327678,3313.0,3311.4,0.13732679]
[1768566979946,0.90787878,3312.9,3311.4,0.13732679]
[1768566980146,0.15327678,3313.0,3311.4,0.13732679]
[1768566980347,0.90787988,3312.9,3311.4,0.13732679]
[1768566980647,0.15327678,3313.0,3311.4,0.13732679]
[1768566980847,0.90784079,3312.9,3311.4,0.13732679]
[1768566981144,0.15327678,3313.0,3311.4,0.13732679]
[1768566981952,0.07227623,3312.8,3311.0,0.15106]
[1768566982158,0.22325623,3312.8,3311.0,0.15106]
[1768566982850,0.22325623,3312.8,3311.0,0.28881156]
[1768566984460,0.90849078,3312.7,3311.0,0.28881156]
[1768566984645,0.00230678,3313.0,3310.5,0.13775156]
[1768566984646,0.07222668,3312.5,3310.5,0.13775156]
[1768566984964,0.07222668,3312.3,3310.5,0.13775156]
[1768566986457,0.07204882,3312.2,3310.5,0.13775156]
[1768566988364,0.90952587,3312.1,3310.4,0.15109]
[1768566988662,0.0720375,3312.1,3310.4,0.15109]
[1768566989765,0.151,3312.3,3310.5,0.130532]
[1768566990063,0.90972541,3312.2,3310.5,0.130532]
[1768566990264,0.151,3312.3,3310.6,0.130532]
[1768566991157,0.9100397,3312.2,3310.6,0.130532]
[1768566991357,0.151,3312.3,3310.6,0.130532]
[1768566991557,0.91004005,3312.2,3310.6,0.130532]
[1768566991757,0.151,3312.3,3310.6,0.130532]
[1768566991958,0.91004016,3312.2,3310.6,0.130532]
[1768566992165,0.151,3312.3,3310.6,0.130532]
[1768566992364,0.91013701,3312.2,3310.6,0.130532]
[1768566992565,0.151,3312.3,3310.6,0.130532]
[1768566992768,0.91013715,3312.2,3310.6,0.130532]
[1768566992967,0.151,3312.3,3310.6,0.130532]
[1768566993161,0.91013713,3312.2,3310.6,0.130532]
[1768566993359,1.36776254,3312.3,3310.9,1.21676254]
[1768566993660,0.9101798,3312.2,3310.9,1.21676254]
[1768566993860,1.36776254,3312.3,3310.9,1.21676254]
[1768566994065,0.91017983,3312.2,3310.9,1.21676254]
[1768566994363,1.36776254,3312.3,3310.9,1.21676254]
[1768566994563,0.91017048,3312.2,3310.9,1.21676254]
[1768566994763,1.36776254,3312.3,3310.9,1.21676254]
[1768566994965,0.9101705,3312.2,3310.9,1.21676254]
[1768566995164,1.36776254,3312.3,3310.9,1.21676254]
[1768566995365,0.91013714,3312.2,3310.9,1.21676254]
[1768566995558,1.36776254,3312.3,3310.9,1.21676254]
[1768566995761,0.91013715,3312.2,3310.9,1.34729454]
[1768566996061,0.151,3312.3,3311.1,1.21676254]
[1768566996259,0.9101066,3312.2,3311.1,1.21676254]
[1768566996465,0.151,3312.3,3311.1,1.21676254]
[1768566996674,0.91010659,3312.2,3311.3,1.21676254]
[1768566996860,0.151,3312.3,3311.5,1.21676254]
[1768566997060,0.91010629,3312.2,3311.3,1.21676254]
[1768566997265,0.151,3312.3,3311.3,1.21676254]
[1768567003075,0.91008691,3312.2,3311.3,1.21676254]
[1768567003375,0.151,3312.3,3311.3,1.21676254]
[1768567003572,0.91008702,3312.2,3311.3,1.21676254]
[1768567003774,0.151,3312.3,3311.3,1.21676254]
[1768567004069,0.91008703,3312.2,3311.3,1.21676254]
[1768567004270,0.151,3312.3,3311.3,1.21676254]
[1768567004471,0.91014971,3312.2,3311.3,1.21676254]
[1768567004666,0.151,3312.3,3311.3,1.21676254]
[1768567004866,0.9101497,3312.2,3311.3,1.21676254]
[1768567005176,0.151,3312.3,3311.1,1.21676254]
[1768567005370,0.91022404,3312.2,3311.1,1.21676254]
[1768567005566,0.151,3312.3,3311.1,1.21676254]
[1768567005766,0.91022415,3312.2,3311.1,1.21676254]
[1768567005967,0.151,3312.3,3311.1,1.21676254]
[1768567006162,0.91022404,3312.2,3311.1,1.21676254]
[1768567006369,0.151,3312.3,3311.1,1.34729454]
[1768567006569,0.91030971,3312.2,3311.1,1.34729454]
[1768567006778,0.151,3312.3,3311.1,1.34729454]
[1768567007079,0.91030971,3312.2,3311.1,1.34729454]
[1768567007378,0.151,3312.3,3311.1,1.34729454]
[1768567007577,0.91041017,3312.2,3311.1,1.34729454]
[1768567007778,0.151,3312.3,3311.1,0.130532]
[1768567008074,0.91041031,3312.2,3311.2,1.21676254]
[1768567008275,0.151,3312.3,3311.2,1.21676254]
[1768567008469,0.91052759,3312.2,3311.2,1.21676254]
[1768567008669,0.151,3312.3,3311.2,1.21676254]
[1768567008869,0.9105276,3312.2,3311.2,1.21676254]
[1768567009077,0.151,3312.3,3311.2,1.21676254]
[1768567009283,0.91066593,3312.2,3311.2,1.21676254]
[1768567009483,0.151,3312.3,3311.2,1.21676254]
[1768567009777,0.91066593,3312.2,3311.2,1.21676254]
[1768567009974,0.151,3312.3,3311.2,1.21676254]
[1768567010177,0.91066594,3312.2,3311.2,1.21676254]
[1768567010370,0.91083232,3312.1,3311.2,1.21676254]
[1768567010571,0.151,3312.3,3311.2,1.21676254]
[1768567010779,0.91083246,3312.2,3311.2,1.21676254]
[1768567010978,0.91083246,3312.1,3311.2,1.21676254]
[1768567011168,0.151,3312.3,3311.2,1.21676254]
[1768567011375,0.91101134,3312.2,3311.2,1.21676254]
[1768567011579,0.91101134,3312.1,3311.2,1.21676254]
[1768567011784,0.151,3312.3,3311.2,1.35404068]
[1768567012081,0.91101146,3312.2,3311.2,1.35404068]
[1768567012281,0.91101146,3312.1,3311.2,1.35404068]
[1768567012581,0.151,3312.3,3311.2,1.35404068]
[1768567012784,0.91115703,3312.2,3311.2,1.35404068]
[1768567012978,0.91115703,3312.1,3311.2,1.35404068]
[1768567013180,0.151,3312.3,3311.2,1.35404068]
[1768567013381,0.91130458,3312.2,3311.2,1.35404068]
[1768567013582,0.91130458,3312.1,3311.2,0.13727814]
[1768567013783,0.151,3312.3,3311.2,0.13727814]
[1768567013983,0.91130468,3312.2,3311.2,0.13727814]
[1768567014182,0.91130468,3312.1,3311.2,0.13727814]
[1768567014377,0.151,3312.3,3311.2,0.13727814]
[1768567014581,0.9115004,3312.2,3311.2,0.13727814]
[1768567014878,0.9115004,3312.1,3311.2,0.13727814]
[1768567015076,0.151,3312.3,3310.9,1.21676254]
[1768567015384,0.91149391,3312.2,3310.9,1.21676254]
[1768567015581,1.21676254,3312.0,3310.8,0.13727814]
[1768567015881,1.21676254,3312.2,3310.8,0.13727814]
[1768567016082,0.9114946,3312.1,3310.9,1.21676254]
[1768567016289,1.21676254,3312.2,3310.9,1.21676254]
[1768567016483,0.91150562,3312.1,3310.9,1.21676254]
[1768567016685,1.21676254,3312.2,3310.9,1.21676254]
[1768567016983,0.9115056,3312.1,3310.9,1.21676254]
[1768567017185,1.21676254,3312.2,3310.9,1.21676254]
[1768567017382,0.91157008,3312.1,3310.9,1.21676254]
[1768567017682,0.151,3312.3,3310.9,1.21676254]
[1768567017882,0.91157009,3312.2,3310.9,1.21676254]
[1768567018082,0.91157009,3312.1,3310.9,1.21676254]
[1768567018284,1.36776254,3312.3,3310.9,1.21676254]
[1768567018484,0.9116373,3312.2,3310.9,1.21676254]
[1768567018684,0.9116373,3312.1,3310.9,1.21676254]
[1768567018888,1.36776254,3312.3,3310.9,1.21676254]
[1768567019088,0.9116373,3312.2,3310.9,1.21676254]
[1768567019281,0.9116373,3312.1,3310.9,1.21676254]
[1768567019585,0.9116373,3312.0,3310.9,1.21676254]
[1768567019886,1.36776254,3312.3,3310.9,1.21676254]
[1768567020071,0.91175142,3312.2,3310.8,0.13727814]
[1768567020273,0.91175142,3312.1,3310.8,0.13727814]
[1768567020478,1.36776254,3312.3,3310.9,1.21676254]
[1768567020679,0.91187354,3312.2,3310.9,1.21676254]
[1768567020882,0.91187354,3312.1,3310.9,1.35404068]
[1768567021082,1.36776254,3312.3,3310.9,1.35404068]
[1768567021381,0.91187598,3312.2,3310.9,1.35404068]
[1768567021582,0.91187598,3312.1,3310.9,1.35404068]
[1768567021882,1.36776254,3312.3,3310.9,1.35404068]
[1768567022081,0.91187534,3312.2,3310.9,1.35404068]
[1768567022284,0.91187534,3312.1,3310.9,1.35404068]
[1768567022485,1.36776254,3312.3,3310.9,1.35404068]
[1768567022688,0.9118807,3312.2,3310.9,1.35404068]
[1768567022987,0.9118807,3312.1,3310.9,1.35404068]
[1768567023188,1.36776254,3312.3,3310.9,1.35404068]
[1768567023388,0.91188703,3312.2,3310.9,1.35404068]
[1768567023589,0.91188703,3312.1,3310.9,1.35404068]
[1768567023889,1.36776254,3312.3,3310.9,1.35404068]
[1768567024187,0.91188703,3312.2,3310.9,1.35404068]
[1768567024388,0.91188703,3312.1,3310.9,1.35404068]
[1768567024589,1.36776254,3312.3,3310.9,1.35404068]
[1768567024791,0.91189504,3312.2,3310.9,1.35404068]
[1768567025089,1.21676254,3311.9,3310.5,0.28835814]
[1768567025276,0.91189504,3312.1,3310.5,0.28835814]
[1768567025277,1.21676254,3311.5,3310.5,0.13727814]
[1768567025681,1.21676254,3311.5,3310.1,0.13727814]
[1768567025877,1.21676254,3311.2,3310.1,0.13727814]
[1768567027194,1.43832907,3311.7,3310.3,1.21676254]
[1768567027398,0.9809786,3311.6,3310.3,1.21676254]
[1768567027694,0.9809786,3311.5,3310.0,1.2201756]
[1768567027897,0.91047715,3311.4,3310.0,0.1406912]
[1768567028088,0.91047715,3311.3,3310.0,0.1406912]
[1768567028384,0.15103,3311.6,3310.2,0.13727814]
[1768567028589,0.91004841,3311.5,3310.3,0.13727814]
[1768567028795,0.91004841,3311.4,3310.6,1.21676254]
[1768567028991,1.21676254,3312.1,3310.6,1.21676254]
[1768567029293,0.90998467,3312.0,3310.5,1.21676254]
[1768567029491,1.21676254,3311.8,3310.3,1.35404068]
[1768567029692,0.90998467,3311.7,3310.3,1.35404068]
[1768567029884,0.90998467,3311.6,3310.3,1.35404068]
[1768567030083,1.21676254,3311.3,3310.0,0.00341306]
[1768567030292,1.21676254,3311.0,3310.0,0.00341306]
[1768567032096,0.15104,3311.4,3310.0,0.00341306]
[1768567032296,1.21676254,3312.0,3310.6,1.21676254]
[1768567032488,0.90885435,3311.9,3310.6,1.21676254]
[1768567032684,0.90885435,3311.8,3310.6,1.21676254]
[1768567032889,0.90885435,3311.7,3310.6,1.21676254]
[1768567033084,1.21676254,3312.0,3310.6,1.21676254]
[1768567033289,0.90878589,3311.9,3310.6,1.21676254]
[1768567033490,0.90878589,3311.8,3310.6,1.21676254]
[1768567033692,0.90878589,3311.7,3310.6,1.21676254]
[1768567033892,1.21676254,3312.0,3310.6,1.21676254]
[1768567034094,0.90875566,3311.9,3310.4,1.35404068]
[1768567034392,2.1255182,3311.8,3310.4,1.35404068]
[1768567034593,0.90875566,3311.7,3310.4,1.35404068]
[1768567034796,1.21676254,3311.8,3310.4,1.35404068]
[1768567035001,0.90871139,3311.7,3310.4,1.35404068]
[1768567035295,1.21676254,3311.8,3310.4,1.35404068]
[1768567035502,0.90867974,3311.7,3310.4,1.35404068]
[1768567035693,1.21676254,3311.8,3310.4,1.35404068]
[1768567035893,0.90867985,3311.7,3310.4,0.13727814]
[1768567036103,0.15101,3312.0,3310.4,1.35404068]
[1768567036303,1.21676254,3311.8,3310.4,1.35404068]
[1768567036802,0.90865807,3311.7,3310.4,1.35404068]
[1768567037001,1.21676254,3311.8,3310.4,1.35404068]
[1768567037302,0.15101,3312.0,3310.4,0.13727814]
[1768567037497,0.90864781,3311.9,3310.4,0.13727814]
[1768567037697,0.90864781,3311.8,3310.4,0.13727814]
[1768567037898,0.15101,3312.0,3310.4,0.13727814]
[1768567038106,0.90864782,3311.9,3310.4,0.13727814]
[1768567038403,0.90864782,3311.8,3310.4,0.13727814]
[1768567038703,0.90864782,3311.7,3310.4,0.13727814]
[1768567038894,0.15101,3312.0,3310.4,0.13727814]
[1768567039091,0.90864759,3311.9,3310.4,0.13727814]
[1768567039295,0.90864759,3311.8,3310.4,0.13727814]
[1768567039497,0.90864759,3311.7,3310.4,0.13727814]
[1768567039797,0.15101,3312.0,3310.4,0.13727814]
[1768567039998,0.90865661,3311.9,3310.4,0.13727814]
[1768567040202,0.90865661,3311.8,3310.4,0.13727814]
[1768567040403,0.90865661,3311.7,3310.0,0.1406912]
[1768567040704,0.07006769,3311.8,3310.0,0.1406912]
[1768567040893,0.90867978,3311.7,3310.0,0.1406912]
[1768567041094,2.19631541,3311.6,3310.0,0.00341306]
[1768567041295,0.97925047,3311.5,3310.0,0.00341306]
[1768567041495,0.90873489,3311.4,3310.0,0.00341306]
[1768567041695,0.07056119,3311.5,3310.0,0.00341306]
[1768567041906,0.90873862,3311.4,3310.0,0.00341306]
[1768567042108,0.07056119,3311.5,3310.0,0.00341306]
[1768567042306,0.9087522,3311.4,3310.0,0.00341306]